{"text_format":"1","workbook":"xlsx","n_sheets":4,"sheets":["Guidance","allocation_businesscase","Summary","Providers"],"not_rendered":{"charts":0,"images":1,"macros":1,"external_links":0,"defined_names":11,"comments":2,"pivot_tables":0},"unopened":[],"bounds":{"document_bytes":16777216,"sheet_cells":100000,"rows_first":2000,"rows_last":500,"rows_between":2000,"halvings":0,"cell_chars":16384,"cell_head_chars":4096},"cells_cut":0,"cells_raw":0,"read":"whole","date_system":"1900"}

{"sheet":"Guidance","index":0,"n_rows":76,"n_cols":3,"rows_kept":76,"cut":false,"hidden":false,"merged":[]}
[]
[]
[]
[]
[null,null,"da"]
[]
[]
[]
[]
[]
[]
[]
[]
[]
[]
[]
[]
[]
[]
[]
[]
[]
[]
[]
[]
[]
[]
[]
[]
[]
[]
[]
[]
[]
[]
[]
[]
[]
[]
[]
[]
[]
[]
[]
[]
[]
[]
[]
[]
[]
[]
[]
[]
[]
[]
[]
[]
[]
[]
[]
[]
[]
[]
[]
[null,"Form details"]
[]
[null,"Field","Description"]
[null,"Completion status","This box stays INCOMPLETE until all the yellow boxes are complete. Once all the required yellow boxes are complete, it will change to COMPLETE."]
[null,"UK Provider Registration Number (UKPRN)","Please enter your UKPRN.  This is an eight digit number.  If you do not know what this is, you can find out by logging into Manage your Education and Skills Funding."]
[null,"Provider name","This box will be completed automatically when you enter your UKPRN."]
[null,"Declaration","Please tick to confirm that you understand and agree to the statements."]
[null,"Request completed by","Please ensure you enter your:\nName\nPosition in organisation\nDate of request"]
[null,"Reason for business case","Please select the reason from the drop down list."]
[null,"Funding stream","Please select the funding stream you wish to raise a business case for (a separate form should be completed for each different funding stream if you wish to raise more than one case)."]
[null,"2023/24 allocation table","Enter the value you have been allocated on your 2023 to 2024 funding year allocation statement, if you haven't received an allocation, enter £0.\n\nEnter the allocation amount you are requesting for the full funding year in the increase requested yellow box.  \n\nPlease note that we use nationally consistent methodologies to calculate allocations so this may not be the value the increase you receive if your business case is accepted and we re-run the calculation.  \n\nIf you do not know what the increase should be then enter £0 in this box.\n\nFor new allocations, this is limited to £25,000."]
[null,"Supporting information text box","Text to support your increase, please limit the amount of words to 250.  We will contact you if we need further information."]

{"sheet":"allocation_businesscase","index":1,"n_rows":55,"n_cols":10,"rows_kept":55,"cut":false,"hidden":false,"merged":[[39,1,39,2],[33,1,33,2],[31,1,31,2],[38,1,38,2],[1,7,1,9],[2,7,3,9],[31,3,31,7],[33,3,33,7],[8,2,8,7],[6,2,6,3],[22,2,22,7],[24,2,24,7],[26,2,26,4],[37,1,37,2],[40,1,40,2],[41,1,41,2],[42,1,42,2],[43,1,43,2],[54,1,72,7]]}
[]
[null,"Post 19 allocation business case",null,null,null,null,null,"Completion status"]
[null,null,null,null,null,null,null,{"$f":"IF(COUNTIFS(J6:J73,\"✔\")=COUNTA(J6:J73),\"Complete\",\"Incomplete\")","v":"Incomplete"},{"$error":"#REF!"},{"$error":"#REF!"}]
[null,null,null,null,null,null,null,{"$error":"#REF!"},{"$error":"#REF!"},{"$error":"#REF!"}]
[null,null,null,null,null,null,null,{"$f":"COUNTA(J6:J73)","v":9}]
[null,"Section 1. Provider details"]
[null,"UKPRN"]
[]
[null,"Provider name",{"$f":"_xlfn.XLOOKUP(C7,Providers!$A$2:$A$1265,Providers!$B$2:$B$1265,\"\",)","v":""},null,null,null,null,null,null,{"$f":"IF(C9=\"\", \"✖\", \"✔\")","v":"✖"}]
[]
[]
[]
[]
[]
[null,"Section 2. Declaration"]
[]
[]
[]
[]
[]
[null,"Please tick the box to confirm the statements above are true.",null,null,null,null,false,null,null,{"$f":"IF(G21=FALSE, \"✖\", \"✔\")","v":"✖"}]
[]
[null,"Name",null,null,null,null,null,null,null,{"$f":"IF(ISBLANK(C23), \"✖\", \"✔\")","v":"✖"}]
[]
[null,"Position",null,null,null,null,null,null,null,{"$f":"IF(ISBLANK(C25), \"✖\", \"✔\")","v":"✖"}]
[]
[null,"Date",null,null,null,null,null,null,null,{"$f":"IF(ISBLANK(C27), \"✖\", \"✔\")","v":"✖"}]
[]
[]
[null,"Section 3. Business case request"]
[]
[null,"Reason for business case",null,null,null,null,null,null,null,{"$f":"IF(ISBLANK(D32), \"✖\", \"✔\")","v":"✖"}]
[]
[null,"Funding stream",null,null,null,null,null,null,null,{"$f":"IF(ISBLANK(D34), \"✖\", \"✔\")","v":"✖"}]
[]
[]
[]
[null,null,null,"Allocation line","Current value","Increase requested","Revised allocation requested"]
[null,"2023 to 2024 allocation",null,null,null,null,{"$f":"E39+F39","v":0},null,null,{"$f":"IF(ISBLANK(D39), \"✖\", \"✔\")","v":"✖"}]
[null,"2023 to 2024 allocation",null,null,null,null,{"$f":"E40+F40","v":0}]
[null,"2023 to 2024 allocation",null,null,null,null,0]
[null,"2023 to 2024 allocation",null,null,null,null,0]
[null,"2023 to 2024 allocation",null,null,null,null,0]
[null,"2023 to 2024 allocation",null,null,null,null,0]
[]
[]
[null,"Section 4. Supporting information"]
[]
[null,"Please briefly describe the reason for your request.  For new requests only, please include evidence of:"]
[null,null,"•  Your capability and capacity to deliver the funding requested"]
[null,null,"•  Why you require an allocation this year when you have not used the funding previously"]
[]
[null,"Please limit this to a maximum of 250 words.  We will contact you if we require further information."]
[null,"Word count:",{"$f":"LEN(TRIM(B55))-LEN(SUBSTITUTE(B55,\" \",\"\"))+1","v":1}]
[null,null,null,null,null,null,null,null,null,{"$f":"IF(ISBLANK(B55), \"✖\", \"✔\")","v":"✖"}]

{"sheet":"Summary","index":2,"n_rows":3,"n_cols":33,"rows_kept":3,"cut":false,"hidden":true,"merged":[[0,8,0,31],[0,0,0,1],[0,2,0,5],[0,6,0,7]]}
["Provider Details ",null,"Declaration",null,null,null,"BC Request",null,"2023 to 24 allocation ",null,null,null,null,null,null,null,null,null,null,null,null,null,null,null,null,null,null,null,null,null,null,null,"Section 4 Supporting info "]
["UKPRN","Provider Name ",null,"Name","Position","Date","Reason for business case","Funding stream","allocation line","current value ","increase requested ","Revised allocation requested","allocation line","current value ","increase requested ","Revised allocation requested","allocation line","current value ","increase requested ","Revised allocation requested","allocation line","current value ","increase requested ","Revised allocation requested","allocation line","current value ","increase requested ","Revised allocation requested","allocation line","current value ","increase requested ","Revised allocation requested","Reason for business case"]
[{"$f":"allocation_businesscase!C7","v":0},{"$f":"allocation_businesscase!C9","v":""},{"$f":"allocation_businesscase!G21","v":false},{"$f":"allocation_businesscase!C23","v":0},{"$f":"allocation_businesscase!C25","v":0},{"$f":"allocation_businesscase!C27","v":"00:00:00"},{"$f":"allocation_businesscase!D32","v":0},{"$f":"allocation_businesscase!D34","v":0},{"$f":"allocation_businesscase!$D39","v":0},{"$f":"allocation_businesscase!$E39","v":0},{"$f":"allocation_businesscase!$F39","v":0},{"$f":"allocation_businesscase!$G39","v":0},{"$f":"allocation_businesscase!$D40","v":0},{"$f":"allocation_businesscase!$E40","v":0},{"$f":"allocation_businesscase!$F40","v":0},{"$f":"allocation_businesscase!$G40","v":0},{"$f":"allocation_businesscase!$D41","v":0},{"$f":"allocation_businesscase!$E41","v":0},{"$f":"allocation_businesscase!$F41","v":0},{"$f":"allocation_businesscase!$G41","v":0},{"$f":"allocation_businesscase!$D42","v":0},{"$f":"allocation_businesscase!$E42","v":0},{"$f":"allocation_businesscase!$F42","v":0},{"$f":"allocation_businesscase!$G42","v":0},{"$f":"allocation_businesscase!$D43","v":0},{"$f":"allocation_businesscase!$E43","v":0},{"$f":"allocation_businesscase!$F43","v":0},{"$f":"allocation_businesscase!$G43","v":0},{"$f":"allocation_businesscase!$D44","v":0},{"$f":"allocation_businesscase!$E44","v":0},{"$f":"allocation_businesscase!$F44","v":0},{"$f":"allocation_businesscase!$G44","v":0},{"$f":"allocation_businesscase!B55","v":0}]

{"sheet":"Providers","index":3,"n_rows":1265,"n_cols":14,"rows_kept":1265,"cut":false,"hidden":true,"merged":[]}
["UKPRN","Provider Name",null,null,"Reason for business case",null,"ESFA Funded Adult Education Budget (AEB)","16-18 Traineeships ","19-24 Traineeships","Advanced Learner Loans","Apprenticeships non-levy (procured)","Apprenticeships carry-in (non-procured)",null,"Filtered list for funding stream dropdowns"]
[10000020,"5 E LTD.",null,null,"Data error",null,"Adult Skills ","16-18 Traineeships ","19-24 Traineeships","Facility","16-18 Apprenticeships ","16-18 Apprenticeships ",null,{"$f":"_xlfn._xlws.SORT(_xlfn.UNIQUE(_xlfn.XLOOKUP(allocation_businesscase!D34,TBL_FS_Areas[#Headers],TBL_FS_Areas[],\" \"),,TRUE))","v":" "}]
[10000028,"WOODSPEEN TRAINING LIMITED",null,null,"No allocation calculated due to no delivery",null,"Community Learning ","Bursary","Learner support","Bursary","19+ Apprenticeships ","19+ Apprenticeships "]
[10000055,"ABINGDON AND WITNEY COLLEGE",null,null,null,null,"Funding for innovative permission"]
[10000060,"ACACIA TRAINING AND DEVELOPMENT LTD",null,null,null,null,"Learner support"]
[10000061,"ACACIA TRAINING LIMITED",null,null,null,null,"Level 3 Free Courses for Jobs"]
[10000080,"ACCESS TO MUSIC LIMITED"]
[10000082,"TRN (TRAIN) LTD."]
[10000099,"ACHIEVEMENT TRAINING LIMITED"]
[10000108,"ACORN TRAINING CONSULTANTS LIMITED"]
[10000143,"BARKING & DAGENHAM LONDON BOROUGH COUNCIL"]
[10000146,"BEXLEY LONDON BOROUGH COUNCIL"]
[10000201,"THE LEARNING FOUNDRY LIMITED"]
[10000238,"ALLIANCE LEARNING"]
[10000239,"PRE-SCHOOL LEARNING ALLIANCE"]
[10000267,"AMACSPORTS LIMITED"]
[10000285,"ANDREW COLLINGE TRAINING LIMITED"]
[10000291,"ANGLIA RUSKIN UNIVERSITY HIGHER EDUCATION CORPORATION"]
[10000330,"AQUINAS COLLEGE"]
[10000385,"ARTS UNIVERSITY BOURNEMOUTH, THE"]
[10000415,"ASKHAM BRYAN COLLEGE"]
[10000417,"ASPECT TRAINING LIMITED"]
[10000421,"ASPIRATION TRAINING LIMITED"]
[10000427,"ASSET TRAINING & CONSULTANCY LIMITED"]
[10000446,"KAPLAN FINANCIAL LIMITED"]
[10000452,"AURELIA TRAINING LIMITED"]
[10000470,"AXIA SOLUTIONS LIMITED"]
[10000473,"AYLESBURY COLLEGE"]
[10000486,"B L TRAINING LIMITED"]
[10000488,"B-SKILL LIMITED"]
[10000494,"BABINGTON BUSINESS COLLEGE LIMITED"]
[10000501,"BAE SYSTEMS PLC"]
[10000528,"BARKING AND DAGENHAM COLLEGE"]
[10000533,"BARNET & SOUTHGATE COLLEGE"]
[10000536,"BARNSLEY COLLEGE"]
[10000538,"BARNSLEY METROPOLITAN BOROUGH COUNCIL"]
[10000560,"BASINGSTOKE COLLEGE OF TECHNOLOGY"]
[10000561,"BASINGSTOKE ITEC LIMITED"]
[10000610,"BEDFORD COLLEGE"]
[10000654,"BERKSHIRE COLLEGE OF AGRICULTURE, THE (BCA)"]
[10000670,"BEXHILL COLLEGE"]
[10000673,"LONDON SKILLS FOR GROWTH LIMITED"]
[10000703,"BIRMINGHAM CITY COUNCIL"]
[10000712,"UNIVERSITY COLLEGE BIRMINGHAM"]
[10000715,"BIRMINGHAM ELECTRICAL TRAINING LTD"]
[10000720,"BISHOP AUCKLAND COLLEGE"]
[10000721,"BISHOP BURTON COLLEGE"]
[10000747,"BLACKBURN COLLEGE"]
[10000748,"BLACKBURN WITH DARWEN BOROUGH COUNCIL"]
[10000754,"BLACKPOOL AND THE FYLDE COLLEGE"]
[10000755,"BLACKPOOL BOROUGH COUNCIL"]
[10000794,"BOLTON COLLEGE"]
[10000795,"BOLTON METROPOLITAN BOROUGH COUNCIL"]
[10000812,"BOSTON COLLEGE"]
[10000820,"BOURNEMOUTH AND POOLE COLLEGE, THE"]
[10000834,"BRACKNELL FOREST BOROUGH COUNCIL"]
[10000840,"BRADFORD COLLEGE"]
[10000848,"APPRIS CHARITY LIMITED"]
[10000863,"BRENT LONDON BOROUGH COUNCIL"]
[10000878,"BRIDGWATER AND TAUNTON COLLEGE"]
[10000883,"BRIGHTON & HOVE CITY COUNCIL"]
[10000896,"BRISTOL CITY COUNCIL"]
[10000929,"BRITISH PRINTING INDUSTRIES FEDERATION LTD"]
[10000944,"BROCKENHURST COLLEGE"]
[10000948,"LONDON SOUTH EAST COLLEGES"]
[10000950,"BROOKLANDS COLLEGE"]
[10000952,"THE SMB GROUP"]
[10000975,"BUCKINGHAMSHIRE NEW UNIVERSITY"]
[10000976,"BUCKINGHAMSHIRE COUNCIL"]
[10000994,"MARTINEX LIMITED"]
[10001000,"BURNLEY COLLEGE"]
[10001004,"BURTON AND SOUTH DERBYSHIRE COLLEGE"]
[10001005,"BURY COLLEGE"]
[10001008,"BURY METROPOLITAN BOROUGH COUNCIL"]
[10001013,"THINK EMPLOYMENT LIMITED"]
[10001078,"DIGITAL TELECOMS NETWORK ACADEMY LIMITED"]
[10001093,"CALDERDALE COLLEGE"]
[10001116,"CAMBRIDGE REGIONAL COLLEGE"]
[10001123,"CAMBRIDGESHIRE COUNTY COUNCIL"]
[10001148,"CAPEL MANOR COLLEGE"]
[10001149,"CAPITA PLC"]
[10001156,"ITEC TRAINING SOLUTIONS LTD"]
[10001174,"CT SKILLS LIMITED"]
[10001201,"CARMEL COLLEGE"]
[10001259,"CENTRAL TRAINING ACADEMY LIMITED"]
[10001282,"UNIVERSITY OF NORTHUMBRIA AT NEWCASTLE"]
[10001309,"COVENTRY AND WARWICKSHIRE CHAMBERS OF COMMERCE TRAINING LIMITED"]
[10001310,"CHAMBER TRAINING (HUMBER) LIMITED"]
[10001346,"CHEADLE AND MARPLE SIXTH FORM COLLEGE"]
[10001353,"CHELMSFORD COLLEGE"]
[10001378,"CHESTERFIELD COLLEGE"]
[10001394,"CHILTERN TRAINING LIMITED"]
[10001436,"CITB"]
[10001446,"CIRENCESTER COLLEGE"]
[10001463,"THE CITY LITERARY INSTITUTE"]
[10001464,"WESTMINSTER CITY COUNCIL"]
[10001465,"BATH COLLEGE"]
[10001467,"CITY OF BRISTOL COLLEGE"]
[10001473,"STOKE-ON-TRENT CITY COUNCIL"]
[10001475,"CITY OF SUNDERLAND COLLEGE"]
[10001476,"UNITED COLLEGES GROUP"]
[10001477,"CITY OF YORK COUNCIL"]
[10001478,"CITY, UNIVERSITY OF LONDON"]
[10001503,"THE NORTHERN SCHOOL OF ART"]
[10001515,"C.M.S. VOCATIONAL TRAINING LIMITED"]
[10001535,"COLCHESTER INSTITUTE"]
[10001539,"THE COLLEGE OF ANIMAL WELFARE LIMITED"]
[10001550,"THE COLLEGE OF RICHARD COLLYER IN HORSHAM"]
[10001647,"FUTURES ADVICE, SKILLS AND EMPLOYMENT LIMITED"]
[10001695,"CORNWALL COUNCIL"]
[10001696,"CORNWALL COLLEGE"]
[10001710,"COUNCIL OF THE ISLES OF SCILLY"]
[10001723,"COVENTRY CITY COUNCIL"]
[10001726,"COVENTRY UNIVERSITY"]
[10001736,"CRACKERJACK TRAINING LIMITED"]
[10001743,"CRAVEN COLLEGE"]
[10001777,"ALT VALLEY COMMUNITY TRUST LIMITED"]
[10001778,"CROYDON COLLEGE"]
[10001786,"CSM CONSULTING LIMITED"]
[10001800,"CUMBRIA COUNTY COUNCIL"]
[10001828,"DART LIMITED"]
[10001831,"DAMAR LIMITED"]
[10001848,"DARLINGTON BOROUGH COUNCIL"]
[10001850,"DARLINGTON COLLEGE"]
[10001869,"DAVIDSON TRAINING UK LIMITED"]
[10001883,"DE MONTFORT UNIVERSITY"]
[10001918,"DERBY CITY COUNCIL"]
[10001919,"DCG"]
[10001928,"DERBYSHIRE COUNTY COUNCIL"]
[10001934,"DERWENTSIDE COLLEGE"]
[10001951,"DEVON COUNTY COUNCIL"]
[10001967,"DIDAC LIMITED"]
[10001971,"DIMENSIONS TRAINING SOLUTIONS LIMITED"]
[10002009,"DONCASTER ROTHERHAM AND DISTRICT MOTOR TRADES GROUP TRAINING ASSOCIATION LIMITED"]
[10002054,"DUDLEY METROPOLITAN BOROUGH COUNCIL"]
[10002061,"CENTRAL BEDFORDSHIRE COLLEGE"]
[10002064,"COUNTY DURHAM COUNCIL"]
[10002073,"BIG CREATIVE TRAINING LTD"]
[10002078,"E-TRAINING LIMITED"]
[10002085,"E.QUALITY TRAINING LIMITED"]
[10002094,"EALING, HAMMERSMITH & WEST LONDON COLLEGE"]
[10002098,"EASI HAIRDRESSING ACADEMY LIMITED"]
[10002107,"THE WINDSOR FOREST COLLEGES GROUP"]
[10002111,"EAST DURHAM COLLEGE"]
[10002126,"EAST RIDING COLLEGE"]
[10002130,"EAST SURREY COLLEGE"]
[10002131,"EAST SUSSEX COUNTY COUNCIL"]
[10002140,"EASTERN REGION ROOF TRAINING GROUP LIMITED"]
[10002143,"EASTLEIGH COLLEGE"]
[10002187,"EDUCATION AND TRAINING SKILLS LTD"]
[10002244,"SHEFFIELD CITY COUNCIL"]
[10002327,"ESSEX COUNTY COUNCIL"]
[10002370,"EXETER COLLEGE"]
[10002407,"FAREPORT TRAINING ORGANISATION LIMITED"]
[10002412,"FARNBOROUGH COLLEGE OF TECHNOLOGY"]
[10002424,"FNTC TRAINING AND CONSULTANCY LIMITED"]
[10002457,"FINCHALE TRAINING COLLEGE"]
[10002471,"EAST LINDSEY INFORMATION TECHNOLOGY CENTRE"]
[10002483,"FIRST RUNG LIMITED"]
[10002565,"FRANCESCO GROUP (HOLDINGS) LIMITED"]
[10002570,"FRANKLIN COLLEGE"]
[10002599,"FURNESS COLLEGE"]
[10002618,"G B TRAINING (UK) LTD"]
[10002638,"GATESHEAD COLLEGE"]
[10002639,"GATESHEAD COUNCIL"]
[10002655,"GENII ENGINEERING & TECHNOLOGY TRAINING LIMITED"]
[10002696,"GLOUCESTERSHIRE COLLEGE"]
[10002697,"GLOUCESTERSHIRE COUNTY COUNCIL"]
[10002743,"GRANTHAM COLLEGE"]
[10002767,"GREENBANK PROJECT (THE)"]
[10002834,"HAIR AND BEAUTY INDUSTRY TRAINING LIMITED"]
[10002841,"HADDON TRAINING LIMITED"]
[10002843,"HADLOW COLLEGE"]
[10002850,"HAIR ACADEMY SOUTH WEST LIMITED"]
[10002852,"HALESOWEN COLLEGE"]
[10002859,"HARINGEY LONDON BOROUGH COUNCIL"]
[10002863,"RIVERSIDE COLLEGE"]
[10002868,"HAMMERSMITH AND FULHAM LONDON BOROUGH COUNCIL"]
[10002872,"HAMPSHIRE COUNTY COUNCIL"]
[10002888,"HAPPY COMPUTERS LIMITED"]
[10002899,"HARLOW COLLEGE"]
[10002910,"HARROW LONDON BOROUGH COUNCIL"]
[10002916,"HARTLEPOOL BOROUGH COUNCIL"]
[10002917,"HARTLEPOOL COLLEGE OF FURTHER EDUCATION"]
[10002923,"EAST SUSSEX COLLEGE GROUP"]
[10002976,"HEART OF ENGLAND TRAINING LIMITED"]
[10002979,"HEATHERCROFT TRAINING SERVICES LIMITED"]
[10003010,"COVENTRY COLLEGE"]
[10003011,"THE HENLEY COLLEGE"]
[10003022,"HEREFORD COLLEGE OF ARTS"]
[10003023,"HEREFORDSHIRE, LUDLOW, AND NORTH SHROPSHIRE COLLEGE"]
[10003025,"HEREFORDSHIRE COUNCIL"]
[10003026,"HEREFORDSHIRE AND WORCESTERSHIRE GROUP TRAINING ASSOCIATION LIMITED"]
[10003029,"HEREWARD COLLEGE OF FURTHER EDUCATION"]
[10003035,"HERTFORD REGIONAL COLLEGE"]
[10003039,"HERTFORDSHIRE COUNTY COUNCIL"]
[10003088,"RICHMOND AND HILLCROFT ADULT AND COMMUNITY COLLEGE"]
[10003089,"HILLINGDON LONDON BOROUGH COUNCIL"]
[10003093,"HILLINGDON TRAINING LIMITED"]
[10003094,"HILLS ROAD SIXTH FORM COLLEGE"]
[10003146,"HOPWOOD HALL COLLEGE"]
[10003161,"BABCOCK TRAINING LIMITED"]
[10003162,"HTP APPRENTICESHIP COLLEGE LTD"]
[10003165,"HOUNSLOW LONDON BOROUGH COUNCIL"]
[10003189,"KIRKLEES COLLEGE"]
[10003193,"HUGH BAIRD COLLEGE"]
[10003197,"HULL BUSINESS TRAINING CENTRE LIMITED"]
[10003198,"KINGSTON UPON HULL CITY COUNCIL"]
[10003200,"HULL COLLEGE"]
[10003206,"HUMBERSIDE ENGINEERING TRAINING ASSOCIATION LIMITED"]
[10003207,"HUMBER LEARNING CONSORTIUM"]
[10003231,"EXG LIMITED"]
[10003240,"ICON VOCATIONAL TRAINING LIMITED"]
[10003252,"CILEX LAW SCHOOL LIMITED"]
[10003274,"LEAN EDUCATION AND DEVELOPMENT LIMITED"]
[10003280,"IN-COMM TRAINING AND BUSINESS SERVICES LIMITED"]
[10003289,"INDEPENDENT TRAINING SERVICES LIMITED"]
[10003347,"INTEC BUSINESS COLLEGES LIMITED"]
[10003354,"INTER TRAINING SERVICES LIMITED"]
[10003375,"QA LIMITED"]
[10003380,"INTROTRAIN & FORUM LIMITED"]
[10003382,"INTUITIONS LIMITED"]
[10003385,"IPS INTERNATIONAL LIMITED"]
[10003402,"ENGINEERING TRUST TRAINING LIMITED"]
[10003406,"ISLE OF WIGHT COLLEGE"]
[10003407,"ISLE OF WIGHT COUNCIL"]
[10003425,"ITALIA CONTI ACADEMY OF THEATRE ARTS LIMITED(THE)"]
[10003427,"ITCHEN COLLEGE"]
[10003429,"ITEC LEARNING TECHNOLOGIES LIMITED"]
[10003430,"ITEC NORTH EAST LIMITED"]
[10003440,"J & E TRAINING CONSULTANTS LIMITED"]
[10003456,"JARVIS TRAINING MANAGEMENT LIMITED"]
[10003491,"JOHN LEGGOTT SIXTH FORM COLLEGE"]
[10003511,"JOSEPH CHAMBERLAIN SIXTH FORM COLLEGE"]
[10003526,"JTL"]
[10003529,"JUNIPER TRAINING LIMITED"]
[10003558,"KENDAL COLLEGE"]
[10003570,"KENT COUNTY COUNCIL"]
[10003571,"KEITS TRAINING SERVICES LTD"]
[10003593,"KEY TRAINING LIMITED"]
[10003674,"SOUTH THAMES COLLEGES GROUP"]
[10003676,"KINGSTON MAURWARD COLLEGE"]
[10003709,"KNOWSLEY METROPOLITAN BOROUGH COUNCIL"]
[10003744,"LAGAT LIMITED"]
[10003748,"MARITIME + ENGINEERING COLLEGE NORTH WEST"]
[10003753,"LAKES COLLEGE WEST CUMBRIA"]
[10003755,"SOUTH BANK COLLEGES"]
[10003768,"LANCASTER AND MORECAMBE COLLEGE"]
[10003784,"GENIUS SOLUTIONS LIMITED"]
[10003808,"LEAGUE FOOTBALL EDUCATION"]
[10003841,"V LEARNING NETWORK, TRADING AS STEP INTO LEARNING LTD"]
[10003853,"LEEDS CITY COUNCIL"]
[10003854,"LEEDS ARTS UNIVERSITY"]
[10003855,"LEEDS COLLEGE OF BUILDING"]
[10003861,"LEEDS BECKETT UNIVERSITY"]
[10003866,"LEICESTER CITY COUNCIL"]
[10003867,"LEICESTER COLLEGE"]
[10003872,"LEICESTERSHIRE COUNTY COUNCIL"]
[10003889,"LESLIE FRANCES (HAIR FASHIONS) LIMITED"]
[10003909,"LIFESKILLS SOLUTIONS LIMITED"]
[10003915,"LIFETIME TRAINING GROUP LIMITED"]
[10003919,"THELIGHTBULB LTD"]
[10003928,"LINCOLN COLLEGE"]
[10003932,"LINCOLNSHIRE COUNTY COUNCIL"]
[10003954,"LIVERPOOL CITY COUNCIL"]
[10003955,"THE CITY OF LIVERPOOL COLLEGE"]
[10003957,"LIVERPOOL JOHN MOORES UNIVERSITY"]
[10003959,"LIVERPOOL THEATRE SCHOOL & COLLEGE LIMITED"]
[10003976,"LOCOMOTIVATION LTD."]
[10003981,"LOMAX TRAINING SERVICES LIMITED"]
[10003987,"BROMLEY LONDON BOROUGH COUNCIL"]
[10003988,"CAMDEN LONDON BOROUGH COUNCIL"]
[10003989,"CROYDON LONDON BOROUGH COUNCIL"]
[10003990,"ROYAL BOROUGH OF GREENWICH"]
[10003993,"HAVERING LONDON BOROUGH COUNCIL"]
[10003996,"MERTON BOROUGH COUNCIL"]
[10003997,"NEWHAM LONDON BOROUGH COUNCIL"]
[10004000,"SUTTON LONDON BOROUGH COUNCIL"]
[10004002,"WANDSWORTH LONDON BOROUGH COUNCIL"]
[10004013,"THE LONDON COLLEGE OF BEAUTY THERAPY LIMITED"]
[10004078,"LONDON SOUTH BANK UNIVERSITY"]
[10004112,"LOUGHBOROUGH COLLEGE"]
[10004113,"LOUGHBOROUGH UNIVERSITY"]
[10004116,"EAST COAST COLLEGE"]
[10004124,"LUTON BOROUGH COUNCIL"]
[10004140,"MEAT EAST ANGLIA TRADES (IPSWICH) LIMITED"]
[10004144,"MACCLESFIELD COLLEGE"]
[10004175,"MANCHESTER CITY COUNCIL"]
[10004177,"THE GROWTH COMPANY LIMITED"]
[10004180,"MANCHESTER METROPOLITAN UNIVERSITY"]
[10004181,"MANTRA LEARNING LIMITED"]
[10004204,"THE MARINE SOCIETY AND SEA CADETS"]
[10004257,"MCARTHUR DEAN TRAINING LIMITED"]
[10004285,"MEDWAY COUNCIL"]
[10004303,"MERCIA PARTNERSHIP (UK) LTD"]
[10004340,"MID-KENT COLLEGE"]
[10004343,"MIDDLESBROUGH COUNCIL"]
[10004344,"MIDDLESBROUGH COLLEGE"]
[10004355,"MIDLAND GROUP TRAINING SERVICES LIMITED"]
[10004370,"COOL BLUE COLLEGE LTD"]
[10004375,"MILTON KEYNES COLLEGE"]
[10004376,"MILTON KEYNES COUNCIL"]
[10004406,"MODE TRAINING LTD"]
[10004432,"MORLEY COLLEGE LIMITED"]
[10004440,"M I T SKILLS LIMITED"]
[10004442,"MOULTON COLLEGE"]
[10004478,"MYERSCOUGH COLLEGE"]
[10004484,"N & B TRAINING COMPANY LIMITED"]
[10004486,"NACRO"]
[10004499,"NATIONAL BUSINESS COLLEGE LIMITED"]
[10004552,"NELSON AND COLNE COLLEGE"]
[10004576,"NEW COLLEGE DURHAM"]
[10004577,"NOTTINGHAM COLLEGE"]
[10004579,"NEW COLLEGE SWINDON"]
[10004596,"NEWBURY COLLEGE"]
[10004599,"NCG"]
[10004601,"NEWCASTLE UPON TYNE CITY COUNCIL"]
[10004603,"NEWCASTLE AND STAFFORD COLLEGES GROUP"]
[10004607,"NEWHAM COLLEGE OF FURTHER EDUCATION"]
[10004609,"NEWHAM TRAINING AND EDUCATION CENTRE"]
[10004632,"NHTA LIMITED"]
[10004657,"NORFOLK COUNTY COUNCIL"]
[10004676,"PETROC"]
[10004686,"NORTH EAST SURREY COLLEGE OF TECHNOLOGY (NESCOT)"]
[10004690,"NORTH HERTFORDSHIRE COLLEGE"]
[10004692,"NORTH LANCS. TRAINING GROUP LIMITED(THE)"]
[10004694,"NORTH LINCOLNSHIRE COUNCIL"]
[10004695,"DN COLLEGES GROUP"]
[10004714,"NORTH TYNESIDE METROPOLITAN BOROUGH COUNCIL"]
[10004718,"NORTH WARWICKSHIRE AND SOUTH LEICESTERSHIRE COLLEGE"]
[10004720,"NORTH WEST COMMUNITY SERVICES TRAINING LTD"]
[10004721,"NORTH KENT COLLEGE"]
[10004723,"NORTH WEST TRAINING COUNCIL"]
[10004727,"NORTH YORKSHIRE COUNTY COUNCIL"]
[10004733,"NORTH NORTHAMPTONSHIRE COUNCIL"]
[10004736,"GREATER BRIGHTON METROPOLITAN COLLEGE"]
[10004739,"NORTHERN COLLEGE FOR RESIDENTIAL ADULT EDUCATION LIMITED(THE)"]
[10004748,"NATIONAL HORSERACING COLLEGE LIMITED"]
[10004762,"THE NORTHUMBERLAND COUNCIL"]
[10004772,"CITY COLLEGE NORWICH"]
[10004788,"THE VOLUNTARY AND COMMUNITY SECTOR LEARNING AND SKILLS CONSORTIUM"]
[10004791,"NOTTINGHAM CITY COUNCIL"]
[10004797,"NOTTINGHAM TRENT UNIVERSITY"]
[10004801,"NOTTINGHAMSHIRE COUNTY COUNCIL"]
[10004807,"NOTTINGHAMSHIRE TRAINING NETWORK LIMITED"]
[10004823,"CDB TRAINING LTD"]
[10004835,"OAKLANDS COLLEGE"]
[10004856,"OLDHAM ENGINEERING GROUP TRAINING ASSOCIATION LIMITED (THE)"]
[10004895,"ORACLE TRAINING CONSULTANTS LIMITED"]
[10004927,"ACTIVATE LEARNING"]
[10004930,"OXFORD BROOKES UNIVERSITY"]
[10004977,"PARAGON EDUCATION & SKILLS LIMITED"]
[10005032,"SALFORD CITY COLLEGE"]
[10005064,"PETA LIMITED"]
[10005072,"PETER SYMONDS COLLEGE"]
[10005074,"PETERBOROUGH CITY COUNCIL"]
[10005077,"INSPIRE EDUCATION GROUP"]
[10005089,"PHILIPS HAIR SALONS LIMITED"]
[10005094,"CHALLENGE-TRG SKILLS LIMITED"]
[10005101,"PILOT IMS LIMITED"]
[10005109,"DERBY BUSINESS COLLEGE LIMITED"]
[10005124,"PLUMPTON COLLEGE"]
[10005126,"PLYMOUTH CITY COUNCIL"]
[10005127,"ARTS UNIVERSITY PLYMOUTH"]
[10005128,"CITY COLLEGE PLYMOUTH"]
[10005143,"BOURNEMOUTH CHRISTCHURCH AND POOLE COUNCIL"]
[10005157,"PORTSMOUTH CITY COUNCIL"]
[10005158,"PORTSMOUTH COLLEGE"]
[10005172,"POULTEC TRAINING LIMITED"]
[10005200,"PRESTON COLLEGE"]
[10005204,"PREVISTA LTD"]
[10005222,"PRIORITY MANAGEMENT LIMITED"]
[10005250,"ACHIEVE TRAINING (STAFFORDSHIRE) LIMITED"]
[10005264,"MILLBROOK MANAGEMENT SERVICES LIMITED"]
[10005268,"TRANSWORLD PUBLICATIONS SERVICES LIMITED"]
[10005277,"SKILLS TO GROUP LIMITED"]
[10005319,"QUBE QUALIFICATIONS AND DEVELOPMENT LIMITED"]
[10005325,"QUEEN ELIZABETH SIXTH FORM COLLEGE"]
[10005389,"RAVENSBOURNE UNIVERSITY LONDON"]
[10005398,"READING BOROUGH COUNCIL"]
[10005404,"REASEHEATH COLLEGE"]
[10005412,"REDBRIDGE LONDON BOROUGH COUNCIL"]
[10005413,"REDCAR AND CLEVELAND BOROUGH COUNCIL"]
[10005422,"REED BUSINESS SCHOOL LIMITED"]
[10005426,"HOUSE OF CLIVE (HAIR AND BEAUTY) LIMITED"]
[10005451,"ARDEN UNIVERSITY LIMITED"]
[10005457,"REWARDS TRAINING RECRUITMENT CONSULTANCY LIMITED"]
[10005465,"RICHARD HUISH COLLEGE"]
[10005469,"RICHMOND UPON THAMES COLLEGE"]
[10005488,"RIVERSIDE TRAINING LIMITED"]
[10005509,"ROCHDALE TRAINING ASSOCIATION LIMITED"]
[10005534,"RNN GROUP"]
[10005549,"ROYAL BOROUGH OF KINGSTON UPON THAMES"]
[10005557,"ROYAL MENCAP SOCIETY"]
[10005575,"RUNSHAW COLLEGE"]
[10005583,"RUSKIN COLLEGE"]
[10005586,"RUTLAND COUNTY COUNCIL"]
[10005588,"RWP TRAINING LIMITED"]
[10005599,"S & B AUTOMOTIVE ACADEMY LIMITED"]
[10005642,"KLEEK APPRENTICESHIPS LIMITED"]
[10005669,"SANDWELL COLLEGE"]
[10005671,"SANDWELL METROPOLITAN BOROUGH COUNCIL"]
[10005735,"SEETEC BUSINESS TECHNOLOGY CENTRE LIMITED"]
[10005736,"UNIFIED SEEVIC PALMER'S COLLEGE"]
[10005741,"SELBY COLLEGE"]
[10005752,"SERCO LIMITED"]
[10005760,"SOUTHAMPTON ENGINEERING TRAINING ASSOCIATION LIMITED (THE)"]
[10005769,"SEYMOUR DAVIES LTD."]
[10005775,"CLEVELAND YOUTH ASSOCIATION"]
[10005788,"SHEFFIELD COLLEGE, THE"]
[10005790,"SHEFFIELD HALLAM UNIVERSITY"]
[10005810,"SHIPLEY COLLEGE"]
[10005822,"SHREWSBURY COLLEGES GROUP"]
[10005891,"SKILLNET LIMITED"]
[10005897,"SKILLS TRAINING UK LIMITED"]
[10005916,"SLOUGH BOROUGH COUNCIL"]
[10005927,"SMART TRAINING AND RECRUITMENT LIMITED"]
[10005946,"SOLIHULL COLLEGE AND UNIVERSITY CENTRE"]
[10005967,"SOUTH & CITY COLLEGE BIRMINGHAM"]
[10005972,"CHESHIRE COLLEGE SOUTH AND WEST"]
[10005977,"SOUTH DEVON COLLEGE"]
[10005979,"HAVANT AND SOUTH DOWNS COLLEGE"]
[10005981,"SOUTH ESSEX COLLEGE OF FURTHER AND HIGHER EDUCATION"]
[10005998,"THE TRAFFORD COLLEGE GROUP"]
[10005999,"TYNE COAST COLLEGE"]
[10006000,"SOUTH TYNESIDE COUNCIL"]
[10006005,"S.W. DURHAM TRAINING LIMITED"]
[10006020,"SOUTHAMPTON CITY COLLEGE"]
[10006021,"SOUTHAMPTON CITY COUNCIL"]
[10006022,"SOLENT UNIVERSITY, SOUTHAMPTON"]
[10006029,"SOUTHEND-ON-SEA BOROUGH COUNCIL"]
[10006038,"SOUTHPORT COLLEGE"]
[10006042,"SOUTHWARK LONDON BOROUGH COUNCIL"]
[10006050,"SPARSHOLT COLLEGE"]
[10006086,"SPRINGBOARD SUNDERLAND TRUST"]
[10006173,"ST HELENS CHAMBER LIMITED"]
[10006174,"ST HELENS COLLEGE"]
[10006296,"STAFFORDSHIRE COUNTY COUNCIL"]
[10006299,"STAFFORDSHIRE UNIVERSITY"]
[10006303,"NEW COLLEGE STAMFORD"]
[10006317,"SALFORD AND TRAFFORD ENGINEERING GROUP TRAINING ASSOCIATION LIMITED"]
[10006322,"STEPHENSON COLLEGE"]
[10006326,"STEVE WILLIS TRAINING LTD."]
[10006332,"STOCKPORT ENGINEERING TRAINING ASSOCIATION LIMITED(THE)"]
[10006335,"STOCKPORT METROPOLITAN BOROUGH COUNCIL"]
[10006337,"STOCKTON-ON-TEES BOROUGH COUNCIL"]
[10006341,"THE EDUCATION TRAINING COLLECTIVE"]
[10006349,"STOKE ON TRENT COLLEGE"]
[10006378,"STRODE COLLEGE"]
[10006387,"STUBBING COURT TRAINING LIMITED"]
[10006398,"SUFFOLK NEW COLLEGE"]
[10006399,"SUFFOLK COUNTY COUNCIL"]
[10006407,"SUNDERLAND CITY METROPOLITAN BOROUGH COUNCIL"]
[10006426,"SURREY COUNTY COUNCIL"]
[10006427,"UNIVERSITY FOR THE CREATIVE ARTS"]
[10006442,"BIRMINGHAM METROPOLITAN COLLEGE"]
[10006462,"SWINDON BOROUGH COUNCIL"]
[10006463,"SWINDON COLLEGE"]
[10006472,"SYSTEM GROUP LIMITED"]
[10006494,"TAMESIDE COLLEGE"]
[10006517,"TDR TRAINING LIMITED"]
[10006547,"BOROUGH OF TELFORD AND WREKIN"]
[10006549,"TELFORD COLLEGE"]
[10006554,"TEMP DENT DENTAL AGENCY LIMITED"]
[10006566,"THE UNIVERSITY OF WEST LONDON"]
[10006570,"EKC GROUP"]
[10006574,"THE ACADEMY HAIR & BEAUTY LTD"]
[10006600,"BCTG LIMITED"]
[10006622,"THE CARE LEARNING CENTRE (ISLE OF WIGHT) LIMITED"]
[10006710,"JGA LIMITED"]
[10006735,"THE LEARNING PARTNERSHIP FOR CORNWALL AND THE ISLES OF SCILLY LIMITED"]
[10006770,"THE OLDHAM COLLEGE"]
[10006797,"THE REYNOLDS GROUP LIMITED"]
[10006813,"THE BROOKE HOUSE SIXTH FORM COLLEGE"]
[10006845,"VIRTUAL COLLEGE LIMITED"]
[10006907,"THURROCK COUNCIL"]
[10006942,"ASPIRE TRAINING TEAM LIMITED"]
[10006963,"NEW CITY COLLEGE"]
[10006964,"TOWER HAMLETS LONDON BOROUGH COUNCIL"]
[10006986,"THE TRAINING & RECRUITMENT PARTNERSHIP LIMITED"]
[10006987,"TRAINING 2000 LIMITED"]
[10007011,"NORTHAMPTON COLLEGE"]
[10007013,"TRAINING PLUS (MERSEYSIDE) LIMITED"]
[10007015,"TRAINING SERVICES 2000 LTD"]
[10007063,"TRURO AND PENWITH COLLEGE"]
[10007070,"TTI REALISATIONS 2019 LIMITED"]
[10007100,"TYNE NORTH TRAINING LIMITED"]
[10007111,"UCKFIELD COLLEGE"]
[10007123,"UK TRAINING & DEVELOPMENT LIMITED"]
[10007137,"THE UNIVERSITY OF CHICHESTER"]
[10007141,"UNIVERSITY OF CENTRAL LANCASHIRE"]
[10007147,"UNIVERSITY OF HERTFORDSHIRE"]
[10007149,"THE UNIVERSITY OF HULL"]
[10007150,"THE UNIVERSITY OF KENT"]
[10007151,"UNIVERSITY OF LINCOLN"]
[10007155,"UNIVERSITY OF PORTSMOUTH"]
[10007156,"UNIVERSITY OF SALFORD, THE"]
[10007157,"THE UNIVERSITY OF SHEFFIELD"]
[10007159,"UNIVERSITY OF SUNDERLAND"]
[10007161,"TEESSIDE UNIVERSITY"]
[10007162,"UNIVERSITY OF THE ARTS, LONDON"]
[10007164,"UNIVERSITY OF THE WEST OF ENGLAND, BRISTOL"]
[10007166,"UNIVERSITY OF WOLVERHAMPTON"]
[10007193,"HCUC"]
[10007212,"VARNDEAN COLLEGE"]
[10007289,"HEART OF YORKSHIRE EDUCATION GROUP"]
[10007291,"WAKEFIELD CITY COUNCIL"]
[10007315,"WALSALL COLLEGE"]
[10007320,"WALTHAM FOREST CHAMBER OF COMMERCE TRAINING TRUST LIMITED"]
[10007321,"WALTHAM FOREST COLLEGE"]
[10007322,"WALTHAM FOREST LONDON BOROUGH COUNCIL"]
[10007339,"WARRINGTON & VALE ROYAL COLLEGE"]
[10007348,"WARWICKSHIRE COUNTY COUNCIL"]
[10007364,"WORKERS' EDUCATIONAL ASSOCIATION"]
[10007375,"WEBS TRAINING LIMITED"]
[10007377,"WEIR TRAINING LIMITED"]
[10007398,"WEST BERKSHIRE COUNCIL"]
[10007402,"WEST BERKSHIRE TRAINING CONSORTIUM"]
[10007417,"WEST HERTS COLLEGE"]
[10007419,"WEST KENT AND ASHFORD COLLEGE"]
[10007424,"THE WEST MIDLANDS CREATIVE ALLIANCE LIMITED"]
[10007427,"WEST NOTTINGHAMSHIRE COLLEGE"]
[10007431,"WEST SUFFOLK COLLEGE"]
[10007432,"WEST SUSSEX COUNTY COUNCIL"]
[10007434,"WEST THAMES COLLEGE"]
[10007455,"THE WKCIC GROUP"]
[10007459,"WESTON COLLEGE OF FURTHER AND HIGHER EDUCATION"]
[10007469,"WEYMOUTH COLLEGE"]
[10007484,"THE WHITE ROSE SCHOOL OF BEAUTY AND COMPLEMENTARY THERAPIES LIMITED"]
[10007500,"WIGAN AND LEIGH COLLEGE"]
[10007502,"WIGAN METROPOLITAN BOROUGH COUNCIL"]
[10007503,"WILBERFORCE COLLEGE"]
[10007527,"WILTSHIRE COLLEGE AND UNIVERSITY CENTRE"]
[10007528,"THE WILTSHIRE COUNCIL"]
[10007553,"WIRRAL METROPOLITAN COLLEGE"]
[10007567,"WOKINGHAM COUNCIL"]
[10007576,"WOLVERHAMPTON CITY COUNCIL"]
[10007578,"CITY OF WOLVERHAMPTON COLLEGE"]
[10007594,"WOMEN'S TECHNOLOGY TRAINING LIMITED"]
[10007623,"WORCESTERSHIRE COUNTY COUNCIL"]
[10007636,"WORKING MEN'S COLLEGE CORPORATION"]
[10007657,"WRITTLE UNIVERSITY COLLEGE"]
[10007659,"W S TRAINING LTD."]
[10007671,"WQE AND REGENT COLLEGE GROUP"]
[10007673,"WYKE SIXTH FORM COLLEGE"]
[10007696,"YEOVIL COLLEGE"]
[10007697,"YH TRAINING SERVICES LIMITED"]
[10007709,"YORK COLLEGE"]
[10007722,"YORKSHIRE TRAINING PARTNERSHIP LIMITED"]
[10007759,"ASTON UNIVERSITY"]
[10007773,"THE OPEN UNIVERSITY"]
[10007801,"UNIVERSITY OF PLYMOUTH"]
[10007817,"CHICHESTER COLLEGE GROUP"]
[10007822,"CRANFIELD UNIVERSITY"]
[10007842,"THE UNIVERSITY OF CUMBRIA"]
[10007848,"UNIVERSITY OF CHESTER"]
[10007851,"UNIVERSITY OF DERBY"]
[10007859,"WARWICKSHIRE COLLEGE"]
[10007872,"SOUTH WEST REGIONAL ASSESSMENT CENTRE LIMITED"]
[10007875,"MARY WARD SETTLEMENT"]
[10007916,"THE COLLEGE OF WEST ANGLIA"]
[10007924,"DUDLEY COLLEGE OF TECHNOLOGY"]
[10007928,"FAREHAM COLLEGE"]
[10007938,"TEC PARTNERSHIP"]
[10007945,"CITY OF PORTSMOUTH COLLEGE"]
[10007977,"HEART OF WORCESTERSHIRE COLLEGE"]
[10008024,"WILTSHIRE TRANSPORT TRAINING & DEVELOPMENT LIMITED"]
[10008155,"CENTRAL YOUNG MEN'S CHRISTIAN ASSOCIATION"]
[10008159,"CHEYNE'S (MANAGEMENT) LIMITED"]
[10008173,"UNIVERSITY COLLEGE OF ESTATE MANAGEMENT"]
[10008354,"LITE (STOCKPORT) LIMITED"]
[10008426,"PGL TRAINING (PLUMBING) LIMITED"]
[10008591,"WEST YORKSHIRE LEARNING PROVIDERS LTD"]
[10008641,"FIRCROFT COLLEGE OF ADULT EDUCATION"]
[10008699,"YORKSHIRE COLLEGE OF BEAUTY LIMITED"]
[10008883,"WDR LIMITED"]
[10008915,"COMMON COUNCIL OF THE CITY OF LONDON"]
[10008919,"EAST RIDING OF YORKSHIRE COUNCIL"]
[10008935,"LEARNING CURVE GROUP LIMITED"]
[10008947,"MANATEC LIMITED"]
[10008986,"WAVERLEY BOROUGH COUNCIL"]
[10009059,"ACCESS TRAINING LIMITED"]
[10009063,"BUILDING CRAFTS COLLEGE"]
[10009091,"SPAN TRAINING & DEVELOPMENT LIMITED"]
[10009099,"URDANG SCHOOLS LIMITED"]
[10009206,"EALING LONDON BOROUGH COUNCIL"]
[10009213,"FASHION RETAIL ACADEMY"]
[10009257,"NORTH LONDON GARAGES GTA"]
[10009263,"NOTTINGHAM TRAINING & EDUCATION"]
[10009439,"STANMORE COLLEGE"]
[10009450,"VOCATIONAL TRAINING SERVICES CARE SECTOR LIMITED"]
[10009491,"MAINSTREAM TRAINING LIMITED"]
[10009600,"HAWK MANAGEMENT (UK) LIMITED"]
[10009970,"STANFORD MANAGEMENT PROCESSES LIMITED"]
[10010178,"DIP (BATLEY) LTD"]
[10010335,"FIREBRAND TRAINING LIMITED"]
[10010523,"SKILLS FOR SECURITY LIMITED"]
[10010584,"ACCESS TRAINING (EAST MIDLANDS) LTD"]
[10010631,"ALM TRAINING SERVICES LIMITED"]
[10010792,"HACKNEY LONDON BOROUGH COUNCIL"]
[10010905,"MEADOWHALL TRAINING LIMITED"]
[10011035,"UGANDA COMMUNITY RELIEF ASSOCIATION"]
[10011159,"TEMPUS TRAINING LIMITED"]
[10011880,"P.T.P. TRAINING LIMITED"]
[10012171,"GHQ TRAINING LIMITED"]
[10012467,"HIT TRAINING LTD"]
[10012477,"LOOKFANTASTIC TRAINING LIMITED"]
[10012834,"SKILLS TEAM LTD"]
[10012892,"MICHAEL MCCORMACK"]
[10013110,"CARE FIRST TRAINING LIMITED"]
[10013118,"D.T.K. BUSINESS SERVICES LIMITED"]
[10013122,"SYSCO BUSINESS SKILLS ACADEMY LIMITED"]
[10013198,"PEACH ORATOR LIMITED"]
[10013362,"SIEMENS PUBLIC LIMITED COMPANY"]
[10013515,"NORTHERN CARE TRAINING LIMITED"]
[10013516,"CITRUS TRAINING LIMITED"]
[10013570,"BUTTERCUPS TRAINING LIMITED"]
[10013658,"PROSPECT TRAINING (YORKSHIRE) LIMITED"]
[10014196,"MICHAEL JOHN HEATH"]
[10016399,"MANUFACTURING EXCELLENCE LIMITED"]
[10018328,"MI COMPUTSOLUTIONS INCORPORATED"]
[10018344,"BESTLAND SOLUTIONS LIMITED"]
[10018916,"IMPACT FUTURES TRAINING LIMITED"]
[10018942,"STEADFAST TRAINING LTD"]
[10019026,"BALTIC TRAINING SERVICES LIMITED"]
[10019065,"CALEX UK LTD"]
[10019105,"RAPID IMPROVEMENT LIMITED"]
[10019155,"ADVANCED PERSONNEL MANAGEMENT GROUP (UK) LIMITED"]
[10019217,"SPS TRAINING SOLUTIONS LIMITED"]
[10019276,"EUROSOURCE SOLUTIONS LIMITED"]
[10019300,"INTEGER TRAINING LIMITED"]
[10019314,"JBC SKILLS TRAINING LIMITED"]
[10019380,"PADDINGTON DEVELOPMENT TRUST"]
[10019383,"CITY GATEWAY"]
[10019431,"ACHIEVE THROUGH LEARNING LIMITED"]
[10019581,"TCHC GROUP LIMITED"]
[10019711,"SKILLS RECRUITMENT LIMITED"]
[10019798,"INTERLEARN LIMITED"]
[10019812,"EAST BIRMINGHAM COMMUNITY FORUM LTD."]
[10019914,"EDEN COLLEGE OF HUMAN RESOURCE DEVELOPMENT AND MANAGEMENT STUDIES LIMITED"]
[10020022,"LEONARDO LIMITED"]
[10020068,"COMMUNITY TRAINING PORTAL LIMITED"]
[10020198,"CONSTRUCTION WORKS (HULL) LIMITED"]
[10020307,"ASTUTE MINDS LTD"]
[10020395,"PEOPLE AND BUSINESS DEVELOPMENT LTD"]
[10020733,"THE MERIDIAN CENTRE"]
[10020884,"THE DEVELOPMENT MANAGER LTD"]
[10021018,"QDOS TRAINING LIMITED"]
[10021254,"JFC  TRAINING COLLEGE LTD"]
[10021391,"PROFESSIONAL TRAINING SOLUTIONS LIMITED"]
[10021427,"EVOLVE YOUR FUTURE LIMITED"]
[10021539,"PET-XI TRAINING LIMITED"]
[10021650,"GREENDALE LIMITED"]
[10021684,"LONDON LEARNING CONSORTIUM COMMUNITY INTEREST COMPANY"]
[10021755,"TOTAL PEOPLE LIMITED"]
[10021793,"PATHWAY FIRST LIMITED"]
[10022070,"ALPHA CARE AGENCY LIMITED"]
[10022117,"DAWN HODGE ASSOCIATES LIMITED"]
[10022358,"PROFOUND SERVICES LIMITED"]
[10022405,"VQ SOLUTIONS LTD"]
[10022503,"PROVQ LIMITED"]
[10022507,"LONDON SKILLS & DEVELOPMENT NETWORK LIMITED"]
[10022513,"AVANT PARTNERSHIP LIMITED"]
[10022570,"TOWER COLLEGE OF FURTHER AND HIGHER EDUCATION LONDON LIMITED"]
[10022596,"ONE TO ONE SUPPORT SERVICES LIMITED"]
[10022627,"IMPACT LEARNING & DATA SOLUTIONS LIMITED"]
[10022763,"THE INTRAINING GROUP LIMITED"]
[10022788,"THE CHILD CARE COMPANY (OLD WINDSOR) LIMITED"]
[10023047,"REMIT GROUP LIMITED"]
[10023139,"LTE GROUP"]
[10023196,"GO TRAIN LIMITED"]
[10023313,"ASPIRE TO LEARN LIMITED"]
[10023368,"SSE SERVICES PLC"]
[10023489,"ACORN TRAINING LTD"]
[10023526,"SOUTH STAFFORDSHIRE COLLEGE"]
[10023538,"TIRO TRAINING LTD"]
[10023592,"PLATO TRAINING (UK) LTD"]
[10023705,"BEST PRACTICE TRAINING & DEVELOPMENT LIMITED"]
[10023776,"POSITIVE APPROACH ACADEMY FOR HAIR LIMITED"]
[10023829,"GLOBAL SKILLS TRAINING LTD"]
[10023871,"RESULTS CONSORTIUM LIMITED"]
[10023896,"MPOWER TRAINING SOLUTIONS LTD"]
[10023898,"THRIVE SKILLS LIMITED"]
[10023918,"ANDERSON STOCKLEY ACCREDITED TRAINING LTD"]
[10024054,"PHOENIX4TRAINING LLP"]
[10024055,"MITRE GROUP LIMITED"]
[10024124,"MARR CORPORATION LIMITED"]
[10024292,"CENTRAL BEDFORDSHIRE COUNCIL"]
[10024293,"CHESHIRE EAST COUNCIL"]
[10024294,"CHESHIRE WEST AND CHESTER COUNCIL"]
[10024404,"LONDON VESTA COLLEGE LIMITED"]
[10024633,"COMMUNICATORS TRAINING ASSOCIATES LIMITED"]
[10024686,"RESOURCES (N E) LIMITED"]
[10024704,"RAYTHEON SYSTEMS LIMITED"]
[10024751,"FW SOLUTIONS LIMITED"]
[10024806,"ACCESS SKILLS LTD"]
[10024815,"ROSEWOOD MANAGEMENT SERVICES LIMITED"]
[10024833,"NTG TRAINING LTD"]
[10024836,"TRIAGE CENTRAL LIMITED"]
[10024962,"LUMINATE EDUCATION GROUP"]
[10025133,"SOLVEWAY LIMITED"]
[10025267,"BOCK CONSULTANCY & PERSONNEL DEVELOPMENT LIMITED"]
[10025330,"RELEASE POTENTIAL LTD"]
[10025384,"EEF LIMITED"]
[10025390,"CLARKSON EVANS TRAINING LIMITED"]
[10025697,"PARETO LAW LIMITED"]
[10025712,"NEW GENERATION TRAINING AND CONSULTANCY LIMITED"]
[10025727,"CATCH 22 CHARITY LIMITED"]
[10025998,"HEXAM TRAINING LIMITED"]
[10026331,"TRAINPLUS LTD"]
[10026397,"THE NVQ TRAINING CENTRE LIMITED"]
[10026590,"FOCUS TRAINING (SW) LIMITED"]
[10026620,"HYBRID TECHNICAL SERVICES LIMITED"]
[10026843,"ELIESHA TRAINING LIMITED"]
[10027272,"STAFF SELECT LTD"]
[10027438,"QUALITRAIN LIMITED"]
[10027453,"LONDON PROFESSIONAL COLLEGE LTD"]
[10027599,"FLOORTRAIN (GB) LIMITED"]
[10027616,"LINDEN MANAGEMENT (UK) LIMITED"]
[10027655,"STARTING OFF LIMITED"]
[10027766,"EDEN TRAINING SOLUTIONS LIMITED"]
[10027803,"LD TRAINING SERVICES LIMITED"]
[10027873,"TRAINING STRATEGIES LTD."]
[10027893,"GK APPRENTICESHIPS LIMITED"]
[10027935,"PROSPECTS TRAINING INTERNATIONAL LIMITED"]
[10028012,"NORTH STAFFORDSHIRE ENGINEERING GROUP TRAINING ASSOCIATION LIMITED"]
[10028094,"SKILLS NORTH EAST LIMITED"]
[10028279,"LEARNING FOR FUTURES LTD"]
[10028742,"SOCIAL ENTERPRISE KENT CIC"]
[10028909,"MEDI PROSPECTS LTD"]
[10028938,"PROFILE DEVELOPMENT AND TRAINING LIMITED"]
[10028965,"SIMPLY ONE STOP LIMITED"]
[10029120,"THE FORWARD TRUST"]
[10029234,"N A COLLEGE TRUST LIMITED"]
[10029308,"THE SKILLS NETWORK LIMITED"]
[10029426,"ABM TRAINING (UK) LTD"]
[10029736,"IGNITE SPORT UK LIMITED"]
[10029768,"TTE TECHNICAL (UK) LTD."]
[10029829,"WELCOME SKILLS LIMITED"]
[10029843,"WALTHAM INTERNATIONAL COLLEGE LIMITED"]
[10029952,"BPP PROFESSIONAL EDUCATION LIMITED"]
[10029974,"RITA'S TRAINING SERVICES"]
[10029981,"STEPPING STONES EDUCATION AND TRAINING LIMITED"]
[10030249,"SKILLS EDGE TRAINING LTD"]
[10030502,"GROUP HORIZON LIMITED"]
[10030637,"BUSY BEES NURSERIES LIMITED"]
[10030802,"THE CONSTRUCTION SKILLS PEOPLE LTD"]
[10030926,"FIRST INTUITION CAMBRIDGE LIMITED"]
[10030935,"FREE TO LEARN LTD"]
[10031093,"TRAINING EVENT SAFETY SOLUTIONS LTD"]
[10031230,"MERCIA COLLEGE LIMITED"]
[10031399,"J G W TRAINING LIMITED"]
[10031424,"DAVID IRESON"]
[10031544,"ANY DRIVER LIMITED"]
[10031662,"ASPECTS CARE LIMITED"]
[10031745,"LONDON CACTUS LIMITED"]
[10031876,"FIT UK TRAINING & EDUCATION LTD"]
[10031912,"DEBUT TRAINING ACADEMY LIMITED"]
[10031971,"LDN APPRENTICESHIPS LTD"]
[10031982,"BPP UNIVERSITY LIMITED"]
[10031984,"DYNAMIC TRAINING UK LIMITED"]
[10032017,"COMMUNITY LEARNING IN PARTNERSHIP (CLIP) CIC"]
[10032029,"ASPIRE SPORTING ACADEMY LTD"]
[10032052,"TRAIN TOGETHER LIMITED"]
[10032119,"SOUTH WEST ASSOCIATION OF TRAINING PROVIDERS LIMITED"]
[10032147,"SPECIALIST TRADE COURSES LIMITED"]
[10032250,"LIONHEART IN THE COMMUNITY LIMITED"]
[10032396,"ENCOMPASS CONSULTANCY LIMITED"]
[10032402,"THE TRAINING PLACE OF EXCELLENCE LIMITED"]
[10032404,"APPRENTICESHIPS & TRAINING SERVICES CONSORTIUM LIMITED"]
[10032448,"EAT THAT FROG C.I.C."]
[10032653,"LOUISE SETTON"]
[10032740,"LEARNING SKILLS PARTNERSHIP LTD"]
[10032857,"HARRIET ELLIS TRAINING SOLUTIONS LIMITED"]
[10032896,"KNIGHTS TRAINING ACADEMY LIMITED"]
[10032936,"EMD UK C.I.C."]
[10033156,"BACK 2 WORK COMPLETE TRAINING LIMITED"]
[10033193,"THE NUMBER 4 GROUP LIMITED"]
[10033408,"CORNWALL MARINE NETWORK LIMITED"]
[10033438,"ROYAL NAVY"]
[10033440,"BRITISH ARMY"]
[10033441,"ROYAL AIR FORCE"]
[10033482,"E-CAREERS EDUCATION LIMITED"]
[10033547,"CONSORTIUM OF VOCATIONAL AND EDUCATIONAL TRAINERS LIMITED"]
[10033608,"BEACON EDUCATION PARTNERSHIP LIMITED"]
[10033710,"BRIGHT DIRECTION TRAINING LIMITED"]
[10033746,"SBC TRAINING LIMITED"]
[10033758,"IXION HOLDINGS (CONTRACTS) LIMITED"]
[10034001,"ASHLEY HUNTER LTD"]
[10034044,"NEW LONDON EDUCATIONAL TRUST"]
[10034055,"ACE TRAINING AND CONSULTANCY LIMITED"]
[10034279,"THE SECURITY TRAINING CORPORATION LTD"]
[10034309,"REALISE LEARNING AND EMPLOYMENT LIMITED"]
[10034315,"LIGA (UK) LTD"]
[10034320,"PERSONAL TRAINER LTD"]
[10034517,"RIGHT TRACK SOCIAL ENTERPRISE LIMITED"]
[10034887,"DEERE APPRENTICESHIPS LTD"]
[10034931,"BRIGHTER BEGINNINGS DAY NURSERY LIMITED"]
[10034940,"JUST IT TRAINING LIMITED"]
[10034944,"PORTSLADE ALDRIDGE COMMUNITY ACADEMY"]
[10034952,"CROSBY MANAGEMENT TRAINING LTD"]
[10035171,"THE LONDON HAIRDRESSING APPRENTICESHIP ACADEMY LIMITED"]
[10035270,"ESCALLA TS LTD"]
[10035281,"ABACUS TRAINING GROUP LIMITED"]
[10035735,"PRESIDENCY LONDON COLLEGE LIMITED"]
[10036049,"CARE ASSESSMENT TRAINING SERVICES LTD"]
[10036126,"BEST CHOICE TRAINING LTD"]
[10036134,"QTS-GLOBAL LTD"]
[10036143,"SOUTH GLOUCESTERSHIRE AND STROUD COLLEGE"]
[10036176,"MIDDLETONMURRAY LIMITED"]
[10036202,"FLT TRAINING (LIVERPOOL) LIMITED"]
[10036227,"ABSOLUTE CARE TRAINING & EDUCATION LTD"]
[10036345,"RATHBONE TRAINING"]
[10036431,"PEOPLEPLUS GROUP LIMITED"]
[10036516,"QUEST TRAINING SOUTH EAST LTD"]
[10036548,"PARTNERSHIP TRAINING LIMITED"]
[10036558,"STREETGAMES UK"]
[10036578,"THE APPRENTICE ACADEMY LIMITED"]
[10036585,"CIVIL CEREMONIES LIMITED"]
[10036736,"K S TRAINING LIMITED"]
[10036794,"SCCU LTD"]
[10036807,"CAN TRAINING LIMITED"]
[10036952,"GP STRATEGIES TRAINING LIMITED"]
[10037126,"BLUE APPLE TRAINING LTD"]
[10037130,"GET SKILLS EMPLOYMENT & TRAINING LTD"]
[10037289,"WORKPAYS LIMITED"]
[10037344,"EASTON AND OTLEY COLLEGE"]
[10037345,"THE TEACHING & LEARNING GROUP LIMITED"]
[10037348,"BABCOCK SKILLS DEVELOPMENT AND TRAINING LIMITED"]
[10037682,"WILDES EDUCATION LIMITED"]
[10037715,"BARRETT BELL LTD"]
[10037798,"CROWN VOCATIONAL TRAINING LIMITED"]
[10038020,"GREEN INC (EU) LIMITED"]
[10038023,"A R C ACADEMY UK LIMITED"]
[10038201,"ASHLEY COMMUNITY & HOUSING LTD"]
[10038368,"TRAIN 4 LIMITED"]
[10038501,"N D A FOUNDATION"]
[10038772,"BRITISH ACADEMY OF JEWELLERY LIMITED"]
[10038823,"THE WORLD OF WORK LIMITED"]
[10038872,"GENIUS SOFTWARE SOLUTIONS LIMITED"]
[10038922,"CAPITAL 4 TRAINING LIMITED"]
[10038931,"PENSHAW VIEW TRAINING LIMITED"]
[10038982,"KNOWLEDGEBRIEF LIMITED"]
[10039140,"THE RECALVI ENTERPRISE LTD"]
[10039242,"TRS TRAINING LIMITED"]
[10039668,"UMBRELLA TRAINING AND EMPLOYMENT SOLUTIONS LIMITED"]
[10039742,"LOGISTICS SKILLS & CONSULTANCY LTD"]
[10039859,"ACADEMY TRANSFORMATION TRUST"]
[10039956,"THE UNIVERSITY OF LAW LIMITED"]
[10040038,"PENDERSONS LTD"]
[10040240,"LEAN ENGINEERING AND MANUFACTURING ACADEMY LIMITED"]
[10040329,"QUEST VOCATIONAL TRAINING LIMITED"]
[10040334,"SYSTEM PEOPLE LIMITED"]
[10040368,"JM EXCELLENCE IN TRAINING LTD"]
[10040440,"FLM TRAINING LTD"]
[10040664,"LET ME PLAY LIMITED"]
[10040684,"ANGLIA PROFESSIONAL TRAINING LIMITED"]
[10040718,"FIRST INTUITION READING LIMITED"]
[10040775,"NOWSKILLS LIMITED"]
[10040788,"WHITEHEAD-ROSS EDUCATION AND CONSULTING LIMITED"]
[10040909,"FAIRWAY TRAINING (HEALTHCARE) LIMITED"]
[10041127,"ZENITH PEOPLE LIMITED"]
[10041149,"XTOL DEVELOPMENT SERVICES LIMITED"]
[10041295,"COLEG CAMBRIA"]
[10041332,"HEALTH EDUCATION ENGLAND NORTH EAST"]
[10041486,"NORTHWEST EDUCATION AND TRAINING LIMITED"]
[10042003,"FIRST INTUITION CHELMSFORD LIMITED"]
[10042190,"JANCETT CHILDCARE & JACE TRAINING LIMITED"]
[10042241,"THE IT SKILLS MANAGEMENT COMPANY LIMITED"]
[10042505,"SOMERSET SKILLS & LEARNING CIC"]
[10042819,"VOCATIONAL SKILLS SOLUTIONS LIMITED"]
[10042884,"BOSCH AUTOMOTIVE SERVICE SOLUTIONS LTD"]
[10043208,"SCL EDUCATION & TRAINING LIMITED"]
[10043333,"ANTREC LIMITED"]
[10043482,"TVS EDUCATION LIMITED"]
[10043485,"THE OXFORD SCHOOL OF DRAMA TRUST"]
[10043571,"GORDON FRANKS TRAINING LIMITED"]
[10043612,"FOCUS FITNESS UK LIMITED"]
[10043661,"OPTIMUM SKILLS LIMITED"]
[10043685,"SUMMERHOUSE EQUESTRIAN AND TRAINING CENTRE LLP"]
[10043793,"APPRENTICE TEAM LTD"]
[10043841,"PROFESSIONAL QUALITY MANAGEMENT SERVICES LIMITED"]
[10043980,"REAL SKILLS TRAINING LTD"]
[10044321,"FURTHER TRAINING LIMITED"]
[10044457,"I & F LIMITED"]
[10044607,"BOOM TRAINING LIMITED"]
[10044729,"MOMENTUM TRAINING AND CONSULTANCY LTD"]
[10044778,"HOB SALONS LIMITED"]
[10044985,"GATEWAY EDUCATION (LONDON) LIMITED"]
[10045070,"CHERITH SIMMONS LEARNING & DEVELOPMENT LLP"]
[10045085,"KIWI EDUCATION LTD"]
[10045119,"VSS TRAINING AND DEVELOPMENT LIMITED"]
[10045136,"ELMHOUSE CHILDCARE LTD"]
[10045159,"AZILO TRAINING LIMITED"]
[10045305,"ATLANTA TRAINING LIMITED"]
[10045306,"STRIVE TRAINING (LONDON) LIMITED"]
[10045389,"CARESHIELD LIMITED"]
[10046149,"DAVIES LEARNING SOLUTIONS LIMITED"]
[10046430,"PRINCIPAL SKILLS LIMITED"]
[10046498,"1ST CARE TRAINING LIMITED"]
[10046692,"ENSIS SOLUTIONS LIMITED"]
[10046705,"GENESIS TRAINING GROUP LTD"]
[10046803,"WEST LONDON SKILLS TRAINING LIMITED"]
[10046979,"THE PORTLAND TRAINING COMPANY LIMITED"]
[10046997,"GLP TRAINING LTD"]
[10047090,"FUNCTIONAL SKILLS UK LIMITED"]
[10047111,"THE APPRENTICESHIP COLLEGE LTD"]
[10047356,"TOTAL TRAINING PROVISION LIMITED"]
[10047679,"CREATIVE PROCESS DIGITAL LTD"]
[10048177,"ESTIO TRAINING LIMITED"]
[10048217,"SOLVO VIR LTD"]
[10048224,"BUILDING HEROES EDUCATION FOUNDATION"]
[10048380,"GINGER NUT MEDIA LIMITED"]
[10049149,"RUNWAY APPRENTICESHIPS LIMITED"]
[10049461,"TALENTED TRAINING LIMITED"]
[10052585,"NORTHERN TRAINING ACADEMY LIMITED"]
[10053340,"ESCALA ACADEMY LIMITED"]
[10053869,"LIGHTHOUSE (TRAINING AND DEVELOPMENT) LTD"]
[10053948,"PRO-ACTIVE SAFETY LIMITED"]
[10054216,"MBKB LTD"]
[10054451,"PIPER TRAINING LIMITED"]
[10054735,"SPRINGFIELD TRAINING LIMITED"]
[10054747,"ORCHARD HILL COLLEGE"]
[10054816,"DIVAD TRAINING LIMITED"]
[10054819,"CREATIVE SPORT & LEISURE LTD"]
[10055054,"COMPLETE LEAN SOLUTIONS LIMITED"]
[10055259,"MERLIN SUPPLY CHAIN SOLUTIONS LIMITED"]
[10055777,"HTFT PARTNERSHIP LIMITED"]
[10056013,"MERCURI INTERNATIONAL (UK) LIMITED"]
[10056315,"PARAGON TRAINING ACADEMY LTD"]
[10056500,"T3 TRAINING & DEVELOPMENT LTD"]
[10056735,"NATIONAL TRAINING & SKILLS LTD"]
[10056738,"FIRST INTUITION LIMITED"]
[10056770,"CEDARS TRAINING ACADEMY LIMITED"]
[10057010,"LONDON DESIGN AND ENGINEERING UTC"]
[10057616,"THREE DIMENSIONAL TRAINING LIMITED"]
[10057910,"EVOLVE ACADEMY LTD"]
[10058123,"MATRIX SOLUTIONS INTERNATIONAL LIMITED"]
[10058195,"ALDRIDGE EDUCATION"]
[10058453,"BEPART EDUCATIONAL TRUST"]
[10060902,"RICHARD HUISH TRUST"]
[10061407,"CORNDEL LIMITED"]
[10061799,"RICOH UK LIMITED"]
[10061808,"F-TEC FORKLIFT TRAINING ENGINEERING CENTRE LTD"]
[10061833,"SKILLCERT LIMITED"]
[10061857,"ABSOLUTE HR SOLUTIONS LTD."]
[10061867,"NEW MODEL BUSINESS ACADEMY LIMITED"]
[10062042,"FIRST INTUITION BRISTOL LIMITED"]
[10062447,"NORTHERN REGENERATION CIC"]
[10062759,"APPLIED BUSINESS ACADEMY LIMITED"]
[10063274,"GUARD BUSINESS SOLUTIONS LIMITED"]
[10063846,"PRIESTLEY COLLEGE"]
[10064200,"HEART OF MERCIA"]
[10064284,"THE CHALLENGE ACADEMY TRUST"]
[10064686,"BIRKENHEAD SIXTH FORM COLLEGE"]
[10065150,"WOKING COLLEGE"]
[10065366,"WORCESTER SIXTH FORM COLLEGE"]
[10065422,"CITY SKILLS LIMITED"]
[10065473,"QUEEN MARY'S COLLEGE"]
[10065834,"RICHARD TAUNTON SIXTH FORM COLLEGE"]
[10065835,"ST VINCENT COLLEGE"]
[10065941,"PRIOR PURSGLOVE AND STOCKTON SIXTH FORM COLLEGE"]
[10066107,"LIGHTHOUSE LEARNING TRUST"]
[10066108,"NORTH HAMPSHIRE EDUCATION ALLIANCE"]
[10066120,"TEES VALLEY COLLABORATIVE TRUST"]
[10066132,"WOKING COLLEGE"]
[10066498,"BRIGHT BEES NURSERY LTD"]
[10067981,"EAST NORFOLK SIXTH FORM COLLEGE"]
[10080810,"HARTPURY COLLEGE OF FURTHER EDUCATION"]
[10080858,"EAST NORFOLK MULTI ACADEMY TRUST"]
[10081879,"BETTER FUTURES MULTI-ACADEMY TRUST"]
[10082366,"ASHTON SIXTH FORM COLLEGE"]
[10082417,"STAMFORD PARK TRUST"]
[10085525,"GATEWAY SIXTH FORM COLLEGE"]
[10085949,"KEIR TRAINING & RECRUITMENT LTD"]
[10088193,"NATIONAL COLLEGE FOR ADVANCED TRANSPORT AND INFRASTRUCTURE"]
[10089242,"RICHARD HUISH COLLEGE"]
[10006651,"THE DERBYSHIRE NETWORK"]
[10023492,"GLOBAL TRAINING ACADEMY C.I.C."]
[10010401,"FOCUS TRAINING LIMITED"]
[10000524,"BARCHESTER HEALTHCARE LIMITED"]
[10000532,"BARNARDO'S"]
[10000552,"BARTON PEVERIL SIXTH FORM COLLEGE"]
[10000831,"BPP HOLDINGS LIMITED"]
[10000850,"BRADFORD CITY COUNCIL"]
[10000886,"UNIVERSITY OF BRIGHTON"]
[10000887,"BRIGHTON HOVE AND SUSSEX SIXTH FORM COLLEGE"]
[10000915,"BRITISH GAS SERVICES LIMITED"]
[10001041,"GLOUCESTERSHIRE ENTERPRISE LIMITED"]
[10001094,"CALDERDALE METROPOLITAN BOROUGH COUNCIL"]
[10001602,"COMMUNITY TRAINING SERVICES LIMITED"]
[10001929,"DERWEN COLLEGE"]
[10002008,"DONCASTER COUNCIL"]
[10002118,"EAST LONDON ADVANCED TECHNOLOGY TRAINING"]
[10002260,"ENFIELD LONDON BOROUGH COUNCIL"]
[10002264,"QINETIQ LIMITED"]
[10002527,"THE FOOTBALL ASSOCIATION PREMIER LEAGUE LIMITED"]
[10002642,"GATEWAY SIXTH FORM COLLEGE"]
[10002704,"GLOUCESTERSHIRE ENGINEERING TRAINING LIMITED"]
[10002801,"GROUNDWORK OLDHAM & ROCHDALE"]
[10002861,"HALTON BOROUGH COUNCIL"]
[10003190,"HUDDERSFIELD TEXTILE TRAINING LIMITED"]
[10003219,"HYA TRAINING LIMITED"]
[10003414,"ISLINGTON LONDON BOROUGH COUNCIL"]
[10003564,"KENSINGTON AND CHELSEA COLLEGE"]
[10003614,"UNIVERSITY OF WINCHESTER"]
[10003678,"KINGSTON UNIVERSITY"]
[10003692,"KIRKLEES METROPOLITAN COUNCIL"]
[10003728,"L.I.T.S. LIMITED"]
[10003771,"LANCASTER TRAINING SERVICES LIMITED"]
[10003895,"LEWISHAM LONDON BOROUGH COUNCIL"]
[10003899,"LEYTON SIXTH FORM COLLEGE"]
[10003995,"LAMBETH LONDON BOROUGH COUNCIL"]
[10004327,"WIRRAL METROPOLITAN BOROUGH COUNCIL"]
[10004351,"MIDDLESEX UNIVERSITY"]
[10004399,"ALTRAD BABCOCK LIMITED"]
[10004434,"MORTHYNG GROUP LIMITED"]
[10004464,"THE MUATH TRUST"]
[10004512,"NATIONAL GRID PLC"]
[10004530,"NATIONAL TYRE SERVICE LIMITED"]
[10004547,"NORTH EAST EMPLOYMENT & TRAINING AGENCY LTD"]
[10004589,"TTE TRAINING LIMITED"]
[10004608,"NEWHAM SIXTH FORM COLLEGE"]
[10004858,"OLDHAM METROPOLITAN BOROUGH COUNCIL"]
[10005192,"PREMIER TRAINING INTERNATIONAL LIMITED"]
[10005237,"PROFESSIONAL BUSINESS & TRAINING SOLUTIONS LIMITED"]
[10005261,"PROSPECT TRAINING SERVICES (GLOUCESTER) LIMITED"]
[10005514,"ROCKET TRAINING LIMITED"]
[10005520,"ROLLS-ROYCE PLC"]
[10005545,"THE ROYAL AGRICULTURAL UNIVERSITY"]
[10005548,"ROYAL BOROUGH OF KENSINGTON AND CHELSEA"]
[10005687,"SCARBOROUGH SIXTH FORM COLLEGE"]
[10005738,"SEFTON METROPOLITAN BOROUGH COUNCIL"]
[10005894,"THE SKILLS PARTNERSHIP LIMITED"]
[10006135,"ST CHARLES CATHOLIC SIXTH FORM COLLEGE"]
[10006175,"ST HELENS METROPOLITAN BOROUGH COUNCIL"]
[10006226,"ST MARY'S COLLEGE"]
[10006365,"STRAIGHT A TRAINING LIMITED"]
[10006408,"SUNDERLAND ENGINEERING TRAINING ASSOCIATION LIMITED"]
[10006495,"TAMESIDE METROPOLITAN BOROUGH COUNCIL"]
[10006571,"THATCHAM RESEARCH"]
[10006734,"THE LEARNING CURVE (VOLUNTARY SECTOR DEVELOPMENT)"]
[10006841,"THE UNIVERSITY OF BOLTON"]
[10007139,"UNIVERSITY OF WORCESTER"]
[10007140,"BIRMINGHAM CITY UNIVERSITY"]
[10007144,"UNIVERSITY OF EAST LONDON"]
[10007145,"UNIVERSITY OF GLOUCESTERSHIRE"]
[10007146,"UNIVERSITY OF GREENWICH"]
[10007163,"THE UNIVERSITY OF WARWICK"]
[10007214,"VAUXHALL NEIGHBOURHOOD COUNCIL LIMITED"]
[10007318,"WALSALL METROPOLITAN BOROUGH COUNCIL"]
[10007362,"RICHMOND UPON THAMES LONDON BOROUGH COUNCIL"]
[10007546,"WINSTANLEY COLLEGE"]
[10007682,"XAVERIAN COLLEGE"]
[10007775,"QUEEN MARY UNIVERSITY OF LONDON"]
[10007785,"THE UNIVERSITY OF BRADFORD"]
[10007791,"THE UNIVERSITY OF ESSEX"]
[10007792,"UNIVERSITY OF EXETER"]
[10008455,"RTC EDUCATION LTD"]
[10008893,"POPLAR HOUSING AND REGENERATION COMMUNITY ASSOCIATION LIMITED"]
[10009072,"THE HEADMASTERS PARTNERSHIP LIMITED"]
[10010134,"STANDGUIDE LIMITED"]
[10010534,"LEARNING CONCEPTS LIMITED"]
[10010548,"SPRINGFIELDS FUELS LIMITED"]
[10010549,"C & G ASSESSMENTS AND TRAINING LIMITED"]
[10010586,"CJI SOLUTIONS LIMITED"]
[10010672,"TRAIN'D UP RAILWAY RESOURCING LIMITED"]
[10010845,"ROYAL BRITISH LEGION INDUSTRIES LTD."]
[10011058,"DEFENCE, MINISTRY OF (MOD)"]
[10011240,"HSBC BANK PLC"]
[10012179,"PHX TRAINING LIMITED"]
[10013486,"NUMIDIA EDUCATION AND TRAINING LIMITED"]
[10013548,"ENGLAND AND WALES CRICKET BOARD LIMITED"]
[10014199,"VEOLIA ENVIRONNEMENT DEVELOPMENT CENTRE LIMITED"]
[10015932,"BUSINESS TRAINING VENTURES LIMITED"]
[10019041,"ENGAGE TRAINING AND DEVELOPMENT LTD"]
[10019304,"EBENEZER COMMUNITY COLLEGE LIMITED"]
[10019780,"WINCANTON GROUP LIMITED"]
[10020811,"SUPERDRUG STORES PLC"]
[10021278,"HIGHFIELDS COMMUNITY ASSOCIATION"]
[10021292,"QUALITY TRANSPORT TRAINING LTD"]
[10021314,"THE FEDERATION OF GROUNDWORK TRUSTS"]
[10021563,"CENTREPOINT SOHO"]
[10021665,"HEALTH & SAFETY TRAINING LIMITED"]
[10022410,"LIRAL VEGET TRAINING AND RECRUITMENT LIMITED"]
[10022856,"MERCEDES-BENZ CARS UK LIMITED"]
[10023290,"WEST LONDON COLLEGE OF BUSINESS & MANAGEMENT SCIENCES LIMITED"]
[10023415,"TONI & GUY UK TRAINING LIMITED"]
[10023434,"LONDON SCHOOL OF COMMERCE & IT LIMITED"]
[10023787,"MERCURY TRAINING SERVICES LTD"]
[10025197,"UNIVERSITY CENTRE QUAYSIDE LIMITED"]
[10026650,"N-GAGED TRAINING LIMITED"]
[10026702,"NISSAN MOTOR MANUFACTURING (UK) LIMITED"]
[10027662,"BRITISH TELECOMMUNICATIONS PUBLIC LIMITED COMPANY"]
[10028342,"THE FINANCE AND MANAGEMENT BUSINESS SCHOOL LIMITED"]
[10028365,"CONSTRUCTION SKILLS SOLUTIONS LIMITED"]
[10029699,"AIM SKILLS DEVELOPMENT LIMITED"]
[10029887,"GECKO PROGRAMMES LIMITED"]
[10029907,"FELIGRACE LIMITED"]
[10030120,"HAYS TRAVEL LIMITED"]
[10030462,"VOYAGE GROUP LIMITED"]
[10030520,"SELECT SERVICE PARTNER UK LIMITED"]
[10030656,"THE JCB ACADEMY"]
[10030688,"OPEN DOOR ADULT LEARNING CENTRE"]
[10031146,"SR APPRENTICESHIPS LIMITED"]
[10031326,"WELL ASSOCIATES LIMITED"]
[10032256,"OASIS CARE AND TRAINING AGENCY (OCTA)"]
[10033736,"ACADEMIES ENTERPRISE TRUST"]
[10034022,"INTROTRAIN (ACE) LIMITED"]
[10034767,"THE ROMSEY SCHOOL"]
[10035469,"SIGMA UK GROUP LIMITED"]
[10036106,"THE TRAINING BROKERS LIMITED"]
[10036333,"HOOPLE LTD"]
[10038077,"TDLC LIMITED"]
[10038387,"NOVA PAYROLL MANAGEMENT SERVICES LIMITED"]
[10038939,"THE FOOTBALL LEAGUE (COMMUNITY) LIMITED"]
[10039793,"ELITE TRAINING, ASSESSING AND DEVELOPMENT CIC"]
[10039882,"GI GROUP RECRUITMENT LTD"]
[10040525,"UNITED UTILITIES WATER LIMITED"]
[10041319,"SHREEJI TRAINING LTD"]
[10041422,"GREENWICH LEISURE LIMITED"]
[10041501,"WEST MIDLANDS AMBULANCE SERVICE UNIVERSITY NHS FOUNDATION TRUST"]
[10042119,"AIM 2 LEARN LTD"]
[10042126,"VISION EXPRESS (UK) LIMITED"]
[10042132,"SPECSAVERS OPTICAL SUPERSTORES LIMITED"]
[10042570,"PEARSON COLLEGE LIMITED"]
[10043112,"CANAL ENGINEERING LIMITED"]
[10043389,"EXCELLENCE-SOLUTIONS LIMITED"]
[10043575,"PIZZA HUT (U.K.) LIMITED"]
[10044197,"PERSONAL TRACK SAFETY LTD"]
[10045505,"COMPLETE SKILLS SOLUTIONS LIMITED"]
[10046552,"HALFORDS LIMITED"]
[10048284,"EDLOUNGE LTD"]
[10048290,"BLUE ARROW LTD."]
[10048326,"IC TRAINING CENTRE LIMITED"]
[10048409,"BRS EDUCATION LIMITED"]
[10052437,"THE EDUCATION AND SKILLS PARTNERSHIP LTD"]
[10052606,"REMPLOY LIMITED"]
[10052815,"TRAINING SKILLS UK LTD"]
[10052892,"CULTURE, LEARNING AND LIBRARIES (MIDLANDS)"]
[10054692,"ALTAMIRA ART & DESIGN LTD"]
[10054898,"CSJ TRAINING LIMITED"]
[10056694,"UNIPER TECHNOLOGIES LIMITED"]
[10057981,"ADA NATIONAL COLLEGE FOR DIGITAL SKILLS"]
[10060425,"BRIGANTIA LEARNING TRUST LIMITED"]
[10060671,"INSPIRE TRUST"]
[10061438,"CADENT GAS LIMITED"]
[10061475,"THE NATIONAL COLLEGE FOR HIGH SPEED RAIL LIMITED"]
[10061491,"NATIONAL COLLEGE FOR THE CREATIVE INDUSTRIES LIMITED"]
[10061637,"VMZONE LTD"]
[10062355,"HEREFORD SIXTH FORM COLLEGE"]
[10064663,"THE SIXTH FORM COLLEGE, SOLIHULL"]
[10064664,"LONGLEY PARK SIXTH FORM COLLEGE"]
[10065854,"MANCHESTER UNIVERSITY NHS FOUNDATION TRUST"]
[10065942,"THOMAS ROTHERHAM COLLEGE"]
[10067427,"THE SIR JOHN BRUNNER FOUNDATION"]
[10005959,"SOMERSET COUNTY COUNCIL"]
[10046797,"AVADO APPRENTICESHIPS LIMITED"]
[131032,"PROSPECTS COLLEGE OF ADVANCED TECHNOLOGY"]
[132600,"PRINCIPAL SKILLS LIMITED"]
[131620,"1ST CARE TRAINING LIMITED"]
[131966,"HALFORDS LIMITED"]
[134384,"ENSIS SOLUTIONS LIMITED"]
[133015,"GENESIS TRAINING GROUP LTD"]
[133117,"BC ARCH LIMITED"]
[133296,"WEST LONDON SKILLS TRAINING LIMITED"]
[131759,"THE PORTLAND TRAINING COMPANY LIMITED"]
[132167,"GLP TRAINING LTD"]
[133262,"FUNCTIONAL SKILLS UK LIMITED"]
[132249,"THE APPRENTICESHIP COLLEGE LTD"]
[133846,"TOTAL TRAINING PROVISION LIMITED"]
[138880,"CPC TRAINING CONSULTANTS LTD"]
[132175,"CREATIVE PROCESS DIGITAL LTD"]
[133801,"ESTIO TRAINING LIMITED"]
[133769,"SOLVO VIR LTD"]
[163514,"BUILDING HEROES EDUCATION FOUNDATION"]
[138838,"EDLOUNGE LTD"]
[133880,"BLUE ARROW LTD."]
[133220,"IC TRAINING CENTRE LIMITED"]
[132988,"GINGER NUT MEDIA LIMITED"]
[134360,"BRS EDUCATION LIMITED"]
[138866,"TALENTED TRAINING LIMITED"]
[132748,"THE EDUCATION AND SKILLS PARTNERSHIP LTD"]
[138620,"NORTHERN TRAINING ACADEMY LIMITED"]
[133539,"REMPLOY LIMITED"]
[133860,"TRAINING SKILLS UK LTD"]
[137972,"CULTURE, LEARNING AND LIBRARIES (MIDLANDS)"]
[138668,"RISUAL LIMITED"]
[138686,"AB EDUCATION CONSULTANTS LIMITED"]
[151996,"ESCALA ACADEMY LIMITED"]
[139088,"LIGHTHOUSE (TRAINING AND DEVELOPMENT) LTD"]
[140419,"PRO-ACTIVE SAFETY LIMITED"]
[134017,"MBKB LTD"]
[139195,"PIPER TRAINING LIMITED"]
[133683,"ALTAMIRA ART & DESIGN LTD"]
[134537,"ORCHARD HILL COLLEGE"]
[139097,"DIVAD TRAINING LIMITED"]
[138886,"CREATIVE SPORT & LEISURE LTD"]
[134536,"Y TRAIN LTD"]
[139927,"CSJ TRAINING LIMITED"]
[138870,"COMPLETE LEAN SOLUTIONS LIMITED"]
[133687,"MERLIN SUPPLY CHAIN SOLUTIONS LIMITED"]
[138749,"AMS NATIONWIDE LTD"]
[139182,"HTFT PARTNERSHIP LIMITED"]
[140398,"MERCURI INTERNATIONAL (UK) LIMITED"]
[139177,"PARAGON TRAINING ACADEMY LTD"]
[139127,"T3 TRAINING & DEVELOPMENT LTD"]
[138671,"UNIPER TECHNOLOGIES LIMITED"]
[139163,"NATIONAL TRAINING & SKILLS LTD"]
[138655,"FIRST INTUITION LIMITED"]
[138813,"CEDARS HEALTH & BEAUTY CENTRES LIMITED"]
[132769,"LONDON DESIGN AND ENGINEERING UTC"]
[138528,"THREE DIMENSIONAL TRAINING LIMITED"]
[136519,"WESTCOUNTRY SCHOOLS TRUST"]
[134707,"ADA NATIONAL COLLEGE FOR DIGITAL SKILLS"]
[139155,"MATRIX SOLUTIONS INTERNATIONAL LIMITED"]
[135047,"ALDRIDGE EDUCATION"]
[135723,"BEPART EDUCATIONAL TRUST"]
[137855,"BRIGANTIA LEARNING TRUST LIMITED"]
[137644,"INSPIRE TRUST"]
[135984,"RICHARD HUISH TRUST"]
[139173,"CORNDEL LIMITED"]
[138844,"CADENT GAS LIMITED"]
[138962,"THE NATIONAL COLLEGE FOR HIGH SPEED RAIL LIMITED"]
[138187,"NATIONAL COLLEGE FOR THE CREATIVE INDUSTRIES LIMITED"]
[163005,"VMZONE LTD"]
[139138,"RICOH UK LIMITED"]
[138795,"SKILLCERT LIMITED"]
[138690,"ABSOLUTE HR SOLUTIONS LTD."]
[138616,"NEW MODEL BUSINESS ACADEMY LIMITED"]
[138651,"FIRST INTUITION BRISTOL LIMITED"]
[136169,"HEREFORD SIXTH FORM COLLEGE"]
[162339,"NORTHERN REGENERATION CIC"]
[140191,"APPLIED BUSINESS ACADEMY LIMITED"]
[139109,"TOTAL LEARNING LIMITED"]
[139008,"PRIESTLEY COLLEGE"]
[139693,"HEART OF MERCIA"]
[139754,"THE CHALLENGE ACADEMY TRUST"]
[139472,"THE SIXTH FORM COLLEGE, SOLIHULL"]
[139349,"LONGLEY PARK SIXTH FORM COLLEGE"]
[139236,"BIRKENHEAD SIXTH FORM COLLEGE"]
[139502,"WOKING COLLEGE"]
[139504,"WORCESTER SIXTH FORM COLLEGE"]
[162335,"CITY SKILLS LIMITED"]
[139904,"QUEEN MARY'S COLLEGE"]
[139958,"RICHARD TAUNTON SIXTH FORM COLLEGE"]
[139964,"ST VINCENT COLLEGE"]
[140139,"MANCHESTER UNIVERSITY NHS FOUNDATION TRUST"]
[139369,"PRIOR PURSGLOVE AND STOCKTON SIXTH FORM COLLEGE"]
[139966,"THOMAS ROTHERHAM COLLEGE"]
[140034,"LIGHTHOUSE LEARNING TRUST"]
[140035,"NORTH HAMPSHIRE EDUCATION ALLIANCE"]
[140047,"TEES VALLEY COLLABORATIVE TRUST"]
[140059,"WOKING COLLEGE"]
[162863,"BRIGHT BEES NURSERY LTD"]
[140856,"THE SIR JOHN BRUNNER FOUNDATION"]
[140514,"EAST NORFOLK SIXTH FORM COLLEGE"]
[141301,"HARTPURY COLLEGE OF FURTHER EDUCATION"]
[141412,"EAST NORFOLK MULTI ACADEMY TRUST"]
[151676,"ASHTON SIXTH FORM COLLEGE"]
[151757,"STAMFORD PARK TRUST"]
[162573,"GATEWAY SIXTH FORM COLLEGE"]
[163516,"KEIR TRAINING & RECRUITMENT LTD"]
[163394,"NATIONAL COLLEGE FOR ADVANCED TRANSPORT AND INFRASTRUCTURE"]
[163528,"RICHARD HUISH COLLEGE"]